bitfinex/quotes_SOLUSD_20240717
["timestamp","ask_amount","ask_price","bid_price","bid_amount"]
[1721256713377,23.74583676,156.14,156.12,0.7990628]
[1721256713554,6.4046,156.14,156.12,0.7990628]
[1721256716881,6.4041,156.15,156.12,0.7990628]
[1721256717097,8.0057971,156.14,156.12,0.7990628]
[1721256717275,1.60135637,156.13,156.12,0.7990628]
[1721256717464,8.00625637,156.13,156.12,0.7990628]
[1721256717671,6.4049,156.13,156.12,0.7990628]
[1721256719286,6.4046,156.14,156.12,0.7990628]
[1721256719479,8.00634122,156.13,156.12,0.7990628]
[1721256719789,6.4049,156.13,156.12,0.7990628]
[1721256719989,20.0,156.13,156.12,0.7990628]
[1721256720192,28.0062391,156.13,156.12,0.7990628]
[1721256720396,20.0,156.13,156.12,0.7990628]
[1721256721270,28.00631267,156.13,156.12,0.7990628]
[1721256722194,26.4049,156.13,156.12,0.7990628]
[1721256722781,71.4049,156.13,156.12,0.7990628]
[1721256726579,73.00656971,156.13,156.12,0.7990628]
[1721256726786,73.00656971,156.13,156.04,31.6435]
[1721256726787,16.0138,156.12,156.04,15.9035]
[1721256726996,21.60193792,156.11,156.04,15.9035]
[1721256727280,6.4077,156.07,156.04,15.9035]
[1721256727681,1.60206149,156.06,156.04,15.9035]
[1721256727888,15.74,156.06,156.04,22.312]
[1721256728104,15.74,156.06,156.04,15.9035]
[1721256728800,15.74,156.06,156.04,22.3119]
[1721256729006,6.4068,156.09,156.04,22.3119]
[1721256729186,1.6019601,156.08,156.04,22.3119]
[1721256729386,1.6019601,156.08,156.04,22.312]
[1721256730706,8.0089601,156.08,156.04,22.312]
[1721256730908,1.60197151,156.07,156.04,22.312]
[1721256731108,1.60197151,156.07,156.04,15.9035]
[1721256731309,6.408,156.06,156.02,16.023]
[1721256731604,15.74,156.06,156.02,22.4322]
[1721256732206,15.74,156.06,156.03,6.4089]
[1721256732404,15.74,156.06,156.02,23.71407195]
[1721256732611,15.74,156.06,156.02,22.4324]
[1721256733309,1.60213671,156.05,156.02,22.4324]
[1721256733490,15.74,156.06,156.02,22.4324]
[1721256733809,15.74,156.06,156.03,6.409]
[1721256734211,15.74,156.06,156.02,16.023]
[1721256734422,1.60217344,156.05,156.02,16.023]
[1721256734710,15.74,156.06,156.03,6.409]
[1721256735097,22.1477,156.06,156.02,22.4323]
[1721256735410,17.34212398,156.05,156.02,16.023]
[1721256735659,15.74,156.05,156.02,16.023]
[1721256736181,17.34220686,156.05,156.02,16.023]
[1721256736909,17.34220686,156.05,156.02,22.4323]
[1721256737212,6.4073,156.07,156.02,23.71404469]
[1721256738998,6.4078,156.06,156.02,23.71404469]
[1721256739319,6.4078,156.06,156.02,22.4323]
[1721256739705,6.4082,156.05,156.01,15.74]
[1721256739907,6.4082,156.05,156.01,22.1497]
[1721256741801,6.4082,156.05,156.01,6.4097]
[1721256742702,6.4078,156.06,156.02,1.28173753]
[1721256743004,6.4078,156.06,156.02,6.4094]
[1721256743423,6.4074,156.07,156.03,1.28167358]
[1721256743635,1.60209065,156.06,156.01,31.7638]
[1721256743838,8.01019065,156.06,156.01,31.7638]
[1721256744129,6.4081,156.06,156.01,38.1734]
[1721256744827,6.4081,156.06,156.02,1.28167124]
[1721256745398,6.4081,156.06,156.01,38.1734]
[1721256746136,6.4083,156.05,156.01,38.1734]
[1721256746308,6.4083,156.05,156.01,22.4334]
[1721256747232,1.60209136,156.09,156.01,22.4334]
[1721256747233,6.4078,156.06,156.01,22.4334]
[1721256747913,6.4075,156.07,156.02,6.4094]
[1721256748107,1.60208845,156.06,156.02,6.4094]
[1721256748426,6.4082,156.05,156.01,16.0238]
[1721256750006,1.60220183,156.09,156.02,1.28176258]
[1721256750201,6.4077,156.07,156.02,7.69106258]
[1721256750424,1.60208458,156.06,156.02,7.69106258]
[1721256750653,6.4077,156.07,156.02,7.69106258]
[1721256751131,1.60193757,156.1,156.06,6.4077]
[1721256751313,8.00813757,156.1,156.05,22.428]
[1721256751827,6.4066,156.09,156.05,16.0199]
[1721256754008,6.4061,156.1,156.05,22.428]
[1721256754212,6.4061,156.1,156.06,6.4077]
[1721256754438,15.74,156.09,156.06,6.4077]
[1721256755038,8.00737066,156.12,156.07,6.4073]
[1721256755236,6.68590322,156.14,156.1,6.4061]
[1721256755237,14.69211944,156.14,156.1,6.4061]
[1721256755535,8.00621622,156.14,156.1,6.4061]
[1721256755749,8.00621622,156.14,156.09,22.422]
[1721256755928,6.4051,156.13,156.09,16.0156]
[1721256756124,22.1451,156.13,156.09,16.0156]
[1721256756331,15.74,156.13,156.08,6.4068]
[1721256756534,1.60141153,156.12,156.07,6.4073]
[1721256756715,6.4057,156.12,156.07,6.4073]
[1721256757039,1.60157779,156.11,156.07,6.4073]
[1721256757838,1.60155974,156.14,156.06,47.3066]
[1721256758025,53.00635974,156.14,156.09,6.4063]
[1721256758224,53.00635974,156.14,156.08,22.4238]
[1721256758225,26.405,156.13,156.08,22.4238]
[1721256758545,1.6015082,156.12,156.08,22.4238]
[1721256758732,1.6015082,156.12,156.09,6.4062]
[1721256759126,8.0070082,156.12,156.08,16.0169]
[1721256759727,8.0070082,156.12,156.08,22.4238]
[1721256759915,1.6015082,156.12,156.08,22.4238]
[1721256760940,8.0068082,156.12,156.08,16.0169]
[1721256761157,6.4061,156.1,156.05,22.4282]
[1721256761444,1.60173437,156.09,156.05,22.4282]
[1721256761629,8.00743437,156.12,156.07,6.407]
[1721256761833,20.0,156.11,156.07,6.407]
[1721256762034,1.60166157,156.1,156.07,6.407]
[1721256763947,15.74,156.12,156.08,6.4068]
[1721256764122,8.00666014,156.13,156.09,6.4062]
[1721256764326,20.0,156.12,156.09,6.4062]
[1721256764520,20.0,156.12,156.08,6.4068]
[1721256764740,20.0,156.12,156.02,47.1777]
[1721256764741,1.60139165,156.11,156.05,15.74]
[1721256764928,6.4065,156.1,156.05,22.1481]
[1721256765426,6.4065,156.1,156.05,6.4081]
[1721256765742,1.6017041,156.09,156.05,6.4081]
[1721256766425,1.6017041,156.09,156.04,22.4294]
[1721256766632,6.4069,156.08,156.04,16.0209]
[1721256766951,1.60196681,156.07,156.04,16.0209]
[1721256767451,8.00936681,156.07,156.03,6.4089]
[1721256767753,6.4074,156.07,156.03,6.4089]
[1721256768950,8.00979373,156.06,156.02,6.4093]
[1721256769146,6.4078,156.06,156.02,6.4093]
[1721256769657,6.4078,156.06,156.01,16.0241]
[1721256769840,6.4074,156.07,156.02,6.4094]
[1721256770028,1.60211669,156.06,156.02,6.4094]
[1721256770750,8.00991669,156.06,156.01,22.4338]
[1721256770949,1.60222532,156.05,156.01,22.4338]
[1721256771152,1.60222532,156.05,156.02,6.4094]
[1721256772845,1.60218309,156.1,156.03,6.4088]
[1721256773057,21.60218309,156.1,156.03,6.4088]
[1721256773231,6.407,156.08,156.03,6.4088]
[1721256773429,21.60198404,156.07,156.03,6.4088]
[1721256773649,20.0,156.07,156.03,6.4088]
[1721256774231,20.0,156.07,156.03,22.1488]
[1721256774629,20.0,156.07,156.04,6.4085]
[1721256774847,20.0,156.08,156.03,38.1704]
[1721256775032,1.60187424,156.09,156.03,22.4304]
[1721256775677,6.4078,156.06,156.03,16.0215]
[1721256775864,6.4078,156.06,156.01,22.1496]
[1721256777851,6.4078,156.06,156.02,6.4093]
[1721256780439,6.4074,156.07,156.02,6.4093]
[1721256780639,1.60206958,156.06,156.02,6.4093]
[1721256780837,1.60206958,156.06,156.03,6.4089]
[1721256781172,6.407,156.08,156.03,6.4089]
[1721256781467,6.407,156.08,156.02,17.30445501]
[1721256781468,20.0,156.07,156.02,16.0228]
[1721256781768,20.0,156.07,156.02,31.7628]
[1721256782268,20.0,156.07,156.03,6.4086]
[1721256782455,26.4073,156.07,156.03,6.4086]
[1721256786165,26.4074,156.07,156.03,6.4086]
[1721256786454,26.4074,156.07,156.02,38.1721]
[1721256786648,6.4077,156.06,156.02,38.1721]
[1721256787252,26.4074,156.07,156.02,38.1721]
[1721256788371,1.60188128,156.1,156.04,31.7611]
[1721256788567,6.4065,156.09,156.05,6.408]
[1721256788759,1.60173863,156.08,156.04,38.1696]
[1721256789080,8.00838638,156.09,156.05,6.4081]
[1721256789569,6.4065,156.09,156.05,6.4081]
[1721256790069,6.4065,156.09,156.04,38.1696]
[1721256790973,6.4065,156.09,156.05,6.4081]
[1721256791166,8.00797584,156.1,156.05,6.4081]
[1721256791681,6.4067,156.09,156.05,6.4081]
[1721256792060,6.4067,156.09,156.04,38.1696]
[1721256792264,6.4067,156.09,156.04,22.4296]
[1721256792785,6.4067,156.09,156.05,6.4081]
[1721256794078,8.00797584,156.1,156.05,6.4081]
[1721256794992,6.4068,156.09,156.04,38.1695]
[1721256795278,6.0432,156.11,156.04,22.4295]
[1721256795279,8.00872731,156.08,156.04,22.4295]
[1721256795491,6.4069,156.08,156.04,22.4295]
[1721256796264,6.4066,156.09,156.05,7.6894962]
[1721256796690,6.4066,156.09,156.04,38.1695]
[1721256797586,6.4066,156.09,156.05,6.4081]
[1721256798772,1.60179682,156.08,156.05,6.4081]
[1721256798977,1.60179682,156.08,156.04,38.1695]
[1721256799689,17.34179682,156.08,156.04,22.4295]
[1721256799895,15.74,156.08,156.04,22.4295]
[1721256800188,17.34182135,156.08,156.04,22.4295]
[1721256800561,17.34182135,156.08,156.05,6.4081]
[1721256801887,15.74,156.08,156.05,6.4081]
[1721256802084,6.4066,156.09,156.05,6.4081]
[1721256802489,1.60179608,156.08,156.05,6.4081]
[1721256802664,6.4066,156.09,156.05,6.4081]
[1721256803895,6.4066,156.09,156.05,22.1481]
[1721256804980,22.1462,156.1,156.05,22.1481]
[1721256805166,6.4062,156.1,156.06,6.4075]
[1721256805367,6.4065,156.09,156.05,22.1481]
[1721256805986,8.00799828,156.1,156.05,22.1481]
[1721256806476,6.4062,156.1,156.05,22.1481]
[1721256807896,22.1458,156.11,156.06,15.74]
[1721256808395,8.00711442,156.12,156.07,15.74]
[1721256808601,22.9129,156.15,156.07,15.74]
[1721256808602,1.60152568,156.14,156.07,15.74]
[1721256808792,6.4054,156.12,156.08,6.4069]
[1721256809293,1.60152692,156.11,156.07,6.4072]
[1721256809791,8.00732692,156.11,156.07,6.4072]
[1721256809967,6.4058,156.11,156.07,6.4072]
[1721256810977,6.4058,156.11,156.06,38.1665]
[1721256811285,8.00783198,156.1,156.06,16.0189]
[1721256811475,1.60166361,156.09,156.06,16.0189]
[1721256811786,6.4071,156.08,156.04,15.74]
[1721256811997,6.4071,156.08,156.04,22.1485]
[1721256812186,6.4062,156.1,156.06,15.74]
[1721256812869,6.4062,156.1,156.03,31.7185]
[1721256813080,6.4062,156.1,156.06,15.74]
[1721256814307,6.4062,156.1,156.06,22.1477]
[1721256814465,6.4057,156.11,156.06,22.1477]
[1721256814671,6.4053,156.12,156.08,15.74]
[1721256816779,22.9129,156.15,156.07,6.4072]
[1721256816780,8.28270458,156.16,156.09,1.28113154]
[1721256816978,26.4044,156.15,156.11,15.74]
[1721256817503,26.4044,156.15,156.11,17.02095168]
[1721256818299,6.4045,156.14,156.12,15.74]
[1721256819571,6.4039,156.16,156.12,15.74]
[1721256819777,6.4041,156.15,156.12,15.74]
[1721256820785,6.4041,156.15,156.11,6.4056]
[1721256821101,6.4038,156.16,156.14,15.74]
[1721256821797,1.60102805,156.18,156.14,15.74]
[1721256821972,1.60095039,156.19,156.15,17.02062937]
[1721256822176,17.34082542,156.2,156.15,17.02062937]
[1721256822705,6.4033,156.17,156.15,15.74]
[1721256822901,6.4033,156.17,156.14,15.74]
[1721256823524,1.60076413,156.21,156.08,44.9503]
[1721256823695,6.4037,156.16,156.13,15.74]
[1721256823889,16.0055,156.2,156.14,17.0206793]
[1721256824087,6.4033,156.17,156.14,15.74]
[1721256824402,6.4033,156.17,156.15,15.74]
[1721256825404,6.4029,156.18,156.15,15.74]
[1721256825912,6.4032,156.17,156.14,15.74]
[1721256826091,15.74,156.16,156.09,22.4221]
[1721256826293,6.4045,156.14,156.1,22.146]
[1721256826602,6.4042,156.15,156.1,22.146]
[1721256826979,6.4029,156.18,156.14,15.74]
[1721256827381,6.4029,156.18,156.15,15.74]
[1721256828286,6.4025,156.19,156.15,15.74]
[1721256828485,20.0,156.18,156.15,15.74]
[1721256828913,26.4029,156.18,156.15,15.74]
[1721256829207,20.0,156.18,156.15,22.1437]
[1721256829523,20.0,156.19,156.15,22.1437]
[1721256829811,26.4025,156.19,156.15,22.144]
[1721256830021,26.4025,156.19,156.15,15.74]
[1721256830511,6.4019,156.21,156.16,22.1436]
[1721256830693,6.4019,156.21,156.17,15.74]
[1721256831787,6.4021,156.2,156.17,15.74]
[1721256832514,8.00220103,156.22,156.17,22.1432]
[1721256832715,6.4018,156.21,156.17,22.1432]
[1721256833194,6.4018,156.21,156.17,15.74]
[1721256833398,6.4013,156.22,156.17,22.143]
[1721256833609,20.0,156.21,156.17,22.143]
[1721256833808,20.0,156.21,156.18,15.74]
[1721256834203,6.4005,156.24,156.2,15.74]
[1721256834402,6.4005,156.24,156.2,17.02018586]
[1721256834713,6.4005,156.24,156.21,15.74]
[1721256834916,6.4009,156.23,156.21,15.74]
[1721256836617,6.4004,156.24,156.22,15.74]
[1721256837123,6.3998,156.26,156.22,15.74]
[1721256837291,26.4001,156.25,156.22,15.74]
[1721256837919,6.4004,156.24,156.22,15.74]
[1721256838094,6.4009,156.23,156.18,27.7672]
[1721256838296,20.0,156.25,156.2,15.74]
[1721256838593,1.60017186,156.24,156.2,15.74]
[1721256838802,1.60017447,156.25,156.19,22.1422]
[1721256839099,6.4008,156.23,156.2,15.74]
[1721256839997,1.60017447,156.25,156.2,15.74]
[1721256839998,6.4005,156.24,156.2,15.74]
[1721256840292,8.00017447,156.25,156.21,15.74]
[1721256840501,6.4005,156.24,156.21,15.74]
[1721256840712,6.4005,156.24,156.2,15.74]
[1721256841118,6.4005,156.24,156.21,15.74]
[1721256842102,6.3997,156.26,156.22,1.28009547]
[1721256842301,1.60016255,156.28,156.24,15.74]
[1721256842498,6.3992,156.27,156.24,15.74]
[1721256842817,6.3996,156.26,156.23,15.74]
[1721256843120,17.34016255,156.28,156.23,15.74]
[1721256843121,6.3992,156.27,156.23,15.74]
[1721256847330,6.3992,156.27,156.24,15.74]
[1721256847623,6.3992,156.27,156.23,15.74]
[1721256849437,6.3988,156.28,156.23,22.1406]
[1721256849609,6.3988,156.28,156.25,15.74]
[1721256850131,6.3984,156.29,156.25,15.74]
[1721256850313,6.3984,156.29,156.25,22.1399]
[1721256852734,1.59978192,156.32,156.25,22.1399]
[1721256852735,6.398,156.3,156.25,22.1399]
[1721256853917,6.6087,156.28,156.19,16.0053]
[1721256854128,6.4022,156.2,156.17,16.1189]
[1721256854317,6.4025,156.19,156.15,16.0096]
[1721256854614,6.4021,156.2,156.14,22.1823]
[1721256854929,6.4017,156.21,156.16,22.1436]
[1721256855326,6.4017,156.21,156.16,6.4036]
[1721256856144,6.402,156.2,156.16,6.4036]
[1721256856327,6.402,156.2,156.16,22.1436]
[1721256856845,6.402,156.2,156.16,6.4036]
[1721256857838,22.1416,156.21,156.16,22.1436]
[1721256858053,22.1416,156.21,156.16,6.4036]
[1721256860031,6.4016,156.21,156.16,6.4036]
[1721256860342,6.4021,156.2,156.16,6.4036]
[1721256860528,6.4017,156.21,156.16,6.4036]
[1721256860947,22.1417,156.21,156.16,6.4036]
[1721256862051,22.1417,156.21,156.17,6.4032]
[1721256864225,15.74,156.21,156.17,6.4032]
[1721256864433,6.4012,156.22,156.17,6.4032]
[1721256865436,15.74,156.21,156.17,6.4032]
[1721256865837,15.74,156.21,156.16,16.0083]
[1721256865838,1.60042138,156.21,156.16,16.0083]
[1721256866151,6.4029,156.18,156.13,38.5354]
[1721256867250,6.4029,156.18,156.14,6.4044]
[1721256867431,6.4025,156.19,156.14,6.4044]
[1721256867767,8.00371727,156.18,156.13,38.5354]
[1721256867931,6.4032,156.17,156.13,38.5354]
[1721256868434,26.4029,156.18,156.14,1.28075408]
[1721256868627,26.4029,156.18,156.13,54.2754]
[1721256869047,26.4029,156.18,156.14,1.28073705]
[1721256869250,6.4033,156.17,156.13,54.2754]
[1721256869634,8.00422166,156.17,156.13,54.2754]
[1721256870033,8.00422166,156.17,156.13,32.1306]
[1721256870561,6.4037,156.16,156.13,32.1306]
[1721256871242,8.00422166,156.17,156.13,32.1306]
[1721256872152,6.4033,156.17,156.13,38.5354]
[1721256872541,8.00422297,156.17,156.13,38.5354]
[1721256873227,6.4033,156.17,156.13,38.5354]
[1721256873551,26.4029,156.18,156.14,1.28073799]
[1721256873735,26.4029,156.18,156.15,1.28066091]
[1721256874435,26.4029,156.18,156.13,54.2754]
[1721256875258,26.4029,156.18,156.13,38.5354]
[1721256878076,6.4025,156.19,156.14,6.4044]
[1721256878239,6.4021,156.2,156.15,6.4039]
[1721256878434,26.4024,156.19,156.15,6.4039]
[1721256878640,26.4024,156.19,156.14,7.68487072]
[1721256879751,26.4024,156.19,156.14,6.4043]
[1721256880668,6.4029,156.18,156.14,6.4043]
[1721256881047,6.4033,156.17,156.13,38.5354]
[1721256881249,6.4033,156.17,156.13,32.1306]
[1721256881767,1.60078125,156.16,156.09,15.8474]
[1721256881944,6.4052,156.13,156.09,15.8474]
[1721256882265,6.405,156.13,156.09,15.8474]
[1721256882442,6.4053,156.12,156.09,15.8474]
[1721256883568,6.4049,156.13,156.09,15.8474]
[1721256884140,6.4044,156.15,156.1,6.406]
[1721256884449,1.60124828,156.16,156.11,6.4057]
[1721256884755,6.4041,156.15,156.11,6.4057]
[1721256885176,1.60119589,156.14,156.1,6.406]
[1721256885474,8.00579589,156.14,156.09,38.2697]
[1721256885653,6.4041,156.15,156.1,6.4059]
[1721256885846,1.60119616,156.14,156.1,6.4059]
[1721256886067,8.00569616,156.14,156.1,6.4059]
[1721256886772,6.4045,156.14,156.1,6.4059]
[1721256887274,8.00618167,156.13,156.09,38.2697]
[1721256887472,6.4049,156.13,156.09,38.2697]
[1721256889649,6.4046,156.14,156.09,38.2697]
[1721256891874,8.00628032,156.13,156.09,31.8633]
[1721256892375,6.405,156.13,156.09,31.8633]
[1721256892549,15.74,156.1,156.09,31.8633]
[1721256892956,1.60150764,156.12,156.09,16.0159]
[1721256893379,6.405,156.13,156.09,16.0159]
[1721256893876,1.60143469,156.12,156.09,22.4223]
[1721256895085,6.4046,156.14,156.09,22.4223]
[1721256895251,21.60139288,156.13,156.09,22.4223]
[1721256897480,6.4041,156.15,156.09,16.0159]
[1721256897654,15.74,156.13,156.09,16.0159]
[1721256897854,15.74,156.13,156.11,16.0138]
[1721256898185,1.60119056,156.15,156.11,16.0138]
[1721256898357,8.00481304,156.16,156.11,16.0138]
[1721256899158,20.0,156.15,156.11,22.4194]
[1721256900195,26.4042,156.15,156.11,22.4194]
[1721256900355,20.0,156.15,156.11,22.4194]
[1721256900682,20.0,156.15,156.12,6.4052]
[1721256900855,15.74,156.15,156.12,6.4052]
[1721256901059,15.74,156.15,156.12,7.68605478]
[1721256901358,15.74,156.15,156.11,22.4195]
[1721256904364,6.4031,156.18,156.13,6.4046]
[1721256904565,28.00421352,156.17,156.12,21.7645]
[1721256904764,26.4033,156.17,156.13,6.4049]
[1721256907693,6.4037,156.16,156.12,21.7647]
[1721256908389,6.4037,156.16,156.12,15.3595]
[1721256908900,6.4037,156.16,156.12,21.7647]
[1721256909688,6.4041,156.15,156.12,15.3595]
[1721256910583,8.00553934,156.14,156.1,6.406]
[1721256910799,6.4045,156.14,156.1,6.406]
[1721256911291,6.4045,156.14,156.09,6.4064]
[1721256911497,6.4045,156.14,156.1,6.406]
[1721256913197,6.4041,156.15,156.1,6.406]
[1721256913575,1.60121103,156.14,156.1,6.406]
[1721256914273,28.00581103,156.14,156.1,6.406]
[1721256914471,6.4046,156.14,156.1,6.406]
[1721256914671,1.60129467,156.13,156.1,6.406]
[1721256916201,6.4046,156.14,156.1,6.406]
[1721256916377,1.6013087,156.13,156.1,6.406]
[1721256918004,1.6013087,156.13,156.09,6.4064]
[1721256920102,8.0063087,156.13,156.09,6.4064]
[1721256920307,6.405,156.13,156.09,6.4064]
[1721256920475,6.4046,156.14,156.09,6.4064]
[1721256920675,1.60148502,156.13,156.09,6.4064]
[1721256926408,15.74,156.11,156.09,6.4064]
[1721256927805,15.74,156.11,156.1,6.4061]
[1721256928009,43.2827594,156.17,156.11,6.4057]
[1721256928010,1.60143716,156.16,156.11,6.4057]
[1721256928209,15.74,156.13,156.11,6.4057]
[1721256931914,20.0,156.14,156.11,6.4057]
[1721256932094,6.4041,156.15,156.11,6.4057]
[1721256935497,6.4041,156.15,156.1,22.4209]
[1721256938332,6.4041,156.15,156.11,6.4057]
[1721256939289,6.4041,156.15,156.1,22.4209]
[1721256939998,8.00428965,156.18,156.13,6.4046]
[1721256940194,8.00410359,156.17,156.12,22.418]
[1721256940400,6.4032,156.17,156.12,22.418]
[1721256940614,6.4037,156.16,156.12,22.418]
[1721256942025,6.4034,156.17,156.12,22.418]
[1721256943124,6.4034,156.17,156.13,6.4048]
[1721256948427,6.4041,156.15,156.12,16.0128]
[1721256949404,1.60115437,156.19,156.12,16.0128]
[1721256949613,6.4038,156.16,156.12,16.0128]
[1721256949920,1.60115347,156.15,156.12,16.0128]
[1721256950314,1.60115347,156.15,156.12,22.418]
[1721256953125,1.60115347,156.15,156.11,6.4056]
[1721256953349,45.0,156.19,156.1,6.4057]
[1721256953350,8.00565183,156.14,156.1,6.4057]
[1721256953510,6.4041,156.15,156.11,6.4057]
[1721256953714,1.60126291,156.14,156.11,6.4057]
[1721256953906,8.00576291,156.14,156.09,16.0159]
[1721256954108,1.60131667,156.13,156.09,22.4221]
[1721256954807,1.60131667,156.13,156.1,6.406]
[1721256955007,6.4045,156.14,156.1,6.406]
[1721256955935,1.60131561,156.13,156.1,6.406]
[1721256956931,21.60131561,156.13,156.08,15.1606]
[1721256957135,15.74,156.09,156.06,16.019]
[1721256957313,6.4062,156.1,156.06,16.019]
[1721256957314,15.74,156.08,156.06,16.019]
[1721256958440,6.4058,156.11,156.06,16.019]
[1721256959135,1.6016201,156.1,156.06,16.019]
[1721256959509,26.4049,156.13,156.06,16.019]
[1721256959707,20.0,156.13,156.08,16.0168]
[1721256960012,1.60148678,156.14,156.09,7.68735467]
[1721256960013,8.00628678,156.14,156.09,7.68735467]
[1721256960214,26.405,156.13,156.09,7.68735467]
[1721256960446,20.0,156.12,156.09,6.4062]
[1721256960611,20.0,156.12,156.08,23.70486027]
[1721256961111,26.4054,156.12,156.08,23.70486027]
[1721256962637,26.4054,156.12,156.08,17.29796027]
[1721256963027,20.0,156.12,156.08,23.70486027]
[1721256963234,6.405,156.13,156.09,6.4065]
[1721256963419,22.145,156.13,156.09,6.4065]
[1721256964334,1.60131566,156.16,156.09,15.74]
[1721256964534,1.60131566,156.16,156.1,15.74]
[1721256964741,6.4046,156.14,156.1,6.406]
[1721256964950,6.4046,156.14,156.09,6.4065]
[1721256965118,6.4046,156.14,156.09,22.1465]
[1721256965752,6.4046,156.14,156.1,6.406]
[1721256967216,6.4046,156.14,156.09,6.4065]
[1721256968318,6.4046,156.14,156.09,22.1465]
[1721256968946,6.4046,156.14,156.09,6.4065]
[1721256969330,6.4046,156.14,156.09,22.1465]
[1721256969742,6.4046,156.14,156.1,6.4059]
[1721256971344,8.00468818,156.17,156.11,1.28095054]
[1721256971527,20.0,156.16,156.12,6.4052]
[1721256972450,6.4037,156.16,156.12,6.4052]
[1721256973420,28.00458818,156.17,156.12,6.4052]
[1721256973627,26.4034,156.17,156.12,6.4052]
[1721256974537,26.4034,156.17,156.12,22.1452]
[1721256975555,6.4034,156.17,156.12,22.1452]
[1721256975725,1.60096908,156.21,156.14,22.1444]
[1721256975934,1.60070473,156.2,156.14,22.1444]
[1721256976132,6.4027,156.19,156.13,16.1459]
[1721256976336,6.4027,156.19,156.14,22.1443]
[1721256977223,6.4027,156.19,156.15,6.404]
[1721256977422,6.4027,156.19,156.16,1.28055299]
[1721256977620,6.4027,156.19,156.15,6.404]
[1721256977621,22.1429,156.18,156.14,15.74]
[1721256978616,22.1429,156.18,156.14,22.1444]
[1721256979136,15.74,156.18,156.14,6.4044]
[1721256979522,8.00231423,156.21,156.16,6.4033]
[1721256980037,6.4022,156.2,156.16,6.4033]
[1721256980359,6.4022,156.2,156.15,6.404]
[1721256980822,6.4022,156.2,156.16,6.4035]
[1721256981759,1.60063483,156.22,156.16,6.4035]
[1721256981760,6.4017,156.21,156.16,6.4035]
[1721256983050,6.4017,156.21,156.17,1.28044939]
[1721256983248,6.4017,156.21,156.18,1.28039237]
[1721256983954,6.4017,156.21,156.17,15.74]
[1721256984149,1.60048977,156.24,156.18,15.74]
[1721256984327,1.6002474,156.25,156.18,17.02034192]
[1721256984660,1.6002474,156.25,156.19,15.74]
[1721256985156,6.4009,156.23,156.18,22.1428]
[1721256986038,6.4009,156.23,156.18,6.4028]
[1721256986250,6.4009,156.23,156.19,6.4023]
[1721256987631,6.4009,156.23,156.18,22.1427]
[1721256988158,6.4009,156.23,156.18,15.74]
[1721256988374,6.4001,156.25,156.2,6.402]
[1721256988532,20.0,156.24,156.2,22.142]
[1721256988855,20.0,156.24,156.21,6.4015]
[1721256989021,20.0,156.24,156.2,15.74]
[1721256989227,20.0,156.24,156.2,22.1419]
[1721256989957,26.4004,156.24,156.2,22.1419]
[1721256992237,26.4004,156.24,156.2,6.4019]
[1721256993257,20.0,156.24,156.2,6.4019]
[1721256993847,26.4004,156.24,156.2,6.4019]
[1721256995069,26.4004,156.24,156.19,22.1423]
[1721256996365,26.4004,156.24,156.2,15.74]
[1721256996577,26.4004,156.24,156.19,6.4023]
[1721256996750,26.4004,156.24,156.19,22.1423]
[1721256997453,26.4004,156.24,156.19,6.4023]
[1721256997959,26.4004,156.24,156.19,22.1423]
[1721257004576,1.6000983,156.23,156.18,38.1494]